Workbook

Sheet Procedure
A1: PROCEDURE Soil Hydro-Physics Lab work 2020
A3: 1 | B3: Please fill in the Order Form
A4: 2 | B4: Mail the Order Form to the lab controller and indicate the preferred dates of lab use
A5: 3 | B5: The lab controller will contact you about planning and reservations
A6: 4 | B6: Please note that once a reservation is made, it is normative, even if a lab job impends to overrun its planned time or is delayed. Shifts in reservations can only be made after consulting the lab controller.
A8: Lab controllers: | C8: 1 | D8: gerben.bakker@wur.nl
C9: 2 | D9: harm.gooren@wur.nl

Sheet General Order Form
A2: Order Form SHP-LAB 2020, (proj.nr. 5500044477)
A3: Project Information: | D3: Billing Address:
A4: Project Manager: | D4: Institute:
A5: Project Number: | D5: Addressee:
A6: Project Name: | D6: Address:
A7: Research Group: | D7: Postal code:
A8: Lab Technician: | D8: City:
D9: Country:
A10: I am a member of WENR-SWL, DOW-SLM, DOW-SBL, DOW-SGL | C10: (Y / N) | E10: =IF(OR(D10="N",D10="n",D10="Y",D10="y"),"","< -- Not a valid entry") -> < -- Not a valid entry | H10: Rate (%)
A11: I do the experiments myself | C11: (Y / N) | E11: =IF(OR(D11="Y",D11="y"),"Indicate Assistance Need under Remarks",IF(OR(D11="N",D11="n"),"","< -- Not a valid entry")) -> < -- Not a valid entry | H11: =IF(D13=FALSE,100,IF(OR(D11="N",D11="n"),100,IF(OR(D10="N",D10="n"),25,IF(OR(D12="N",D12="n"),0,18)))) -> 100
A12: Experiment is part of a Contract Funded Project (3e geldstroom) | C12: (Y / N) | E12: =IF(OR(D12="N",D12="n",D12="Y",D12="y"),"","< -- Not a valid entry") -> < -- Not a valid entry
A13: Rate: | B13: (M+IKP)/2 | D13: =IF(AND(OR(D10="Y",D10="y",D10="N",D10="n"),OR(D11="Y",D11="y",D11="N",D11="n"),OR(D12="Y",D12="y",D12="N",D12="n")),TRUE,FALSE) -> FALSE
A14: =Rate!A10 -> Method, Complete Curves, or Other | F14: Price per sample per point (Euro) | G14: Amount of | I14: Total (Euro)
G17: Samples | H17: Points
A18: =Rate!A11 -> Individual Methods:
A19: =Rate!A12 -> Aggregate Stability per aggregate fraction | F19: =ROUND(($H$11/100)*Rate!B12,2) -> 93.57 | H19: 1 | I19: =IF(AND(G19>0,H19>0),F19*G19*H19,"") -> 
A20: =Rate!A13 -> Air dry mass water content (h=-10^6 cm) | F20: =ROUND(($H$11/100)*Rate!B13,2) -> 24.18 | H20: 1 | I20: =IF(AND(G20>0,H20>0),F20*G20*H20,"") -> 
A21: =Rate!A14 -> Atterberg Limits | F21: =ROUND(($H$11/100)*Rate!B14,2) -> 644.94 | H21: 1
A22: =Rate!A15 -> Burette Hanging Water Column Manual (h=0 until -200cm) | F22: =ROUND(($H$11/100)*Rate!B15,2) -> 82.92
A23: =Rate!A16 -> Dry Bulk Density rho(d) (undisturbed samples) (T=105 dgr.C) | F23: =ROUND(($H$11/100)*Rate!B16,2) -> 24.18 | H23: 1
A24: =Rate!A17 -> Evaporation (Wind) (h=-50 until -700cm) (fixed > 20 points) + data filter (excl fit) | F24: =ROUND(($H$11/100)*Rate!B17,2) -> 806.71 | H24: 1
A25: =Rate!A18 -> Evaporation_Mualem-Van Genuchten Fit | F25: =ROUND(($H$11/100)*Rate!B18,2) -> 387.8 | H25: 1 | I25: =IF(AND(G25>0,H25>0),F25*G25*H25,"") -> 
A26: =Rate!A19 -> Loss on ignition (OS) (T=550 dgr.C) | F26: =ROUND(($H$11/100)*Rate!B19,2) -> 18.51
A27: =Rate!A20 -> Multistep (h=0 until -1000cm) (fixed > 50 points) | F27: =ROUND(($H$11/100)*Rate!B20,2) -> 125.53 | H27: 1
A28: =Rate!A21 -> Pipette Preparation (CBLB): Dry, break, sieve <2000u, Remove OM (H2O2), Carbonates (HCl) (Only performed by Lab personnel) | F28: =Rate!B21 -> 104.7839594 | H28: 1
A29: =Rate!A22 -> Pipette Method per fraction (CBLB) (N.B: Preparation excl.) Only performed by lab personnel | F29: =Rate!B22 -> 20.83411168
A30: =Rate!A23 -> Pore Volume (excl drying at 105 gr.C) with air pycnometer | F30: =ROUND(($H$11/100)*Rate!B23,2) -> 49.52 | H30: 1
A31: =Rate!A24 -> Pressure Plate (h=-10^3 until -10^4cm) | F31: =ROUND(($H$11/100)*Rate!B24,2) -> 92.13
A32: =Rate!A25 -> Sandbox (h=0 until -100cm) | F32: =ROUND(($H$11/100)*Rate!B25,2) -> 24.18
A33: =Rate!A26 -> Saturated Hydraulic Conductivity Ksat (h=0) | F33: =ROUND(($H$11/100)*Rate!B26,2) -> 342.05 | H33: 1
A34: =Rate!A27 -> Saturated Hydraulic Conductivity Ksat (h=0) at extreme low conductivities | F34: =ROUND(($H$11/100)*Rate!B27,2) -> 494.08 | H34: 1
A35: =Rate!A28 -> Shrinkage Characteristic (h=0 until -10^6cm) | F35: =ROUND(($H$11/100)*Rate!B28,2) -> 28.79
A36: =Rate!A29 -> Sieving Preparation (CBLB): Dry, break, sieve <2000u, Remove OM (H2O2), Carbonates (HCl) (Only performed by Lab personnel) | F36: =Rate!B29 -> 104.7839594 | H36: 1 | I36: =IF(AND(G36>0,H36>0),F36*G36*H36,"") -> 
A37: =Rate!A30 -> Sieving weight fraction (chemical preparation excl.) | F37: =ROUND(($H$11/100)*Rate!B30,2) -> 19.58
A38: =Rate!A31 -> Suction Plate (h=50 until -700cm) | F38: =ROUND(($H$11/100)*Rate!B31,2) -> 42.62
A39: =Rate!A32 -> Water Content or Wetness (Volumetric or Gravimetric Water Content) (T=105 dgr.C) | F39: =ROUND(($H$11/100)*Rate!B32,2) -> 24.18 | H39: 1
A40: =Rate!A33 -> Water Repellency: Water or Alcohol Penetration Test | F40: =ROUND(($H$11/100)*Rate!B33,2) -> 24.18 | H40: 1
A41: =Rate!A34 -> Wetting rate | F41: =ROUND(($H$11/100)*Rate!B34,2) -> 115.17 | H41: 1
A42: =Rate!A35 -> Complete Curves:
A43: =Rate!A36 -> Compression c.q. Uniaxial test (compression and pressure head in time at predefined forces up to 7 bar) | F43: =ROUND(($H$11/100)*Rate!B36,2) -> 211.91 | H43: 1 | I43: =IF(AND(G43>0,H43>0),F43*G43*H43,"") -> 
A44: =Rate!A37 -> pF curve (h = 3, 10, 30, 60, 100, 300, 1000, 3000, 14000, 1000 000 cm) | F44: =ROUND(($H$11/100)*Rate!B37,2) -> 513.6 | H44: 1 | I44: =IF(AND(G44>0,H44>0),F44*G44*H44,"") -> 
A45: =Rate!A38 -> Pipette Preparation (CBLB): Dry, break, sieve <2000u, Remove OM (H2O2), Carbonates (HCl) (Only performed by Lab personnel) | F45: =Rate!B38 -> 104.7839594 | H45: 1
A46: =Rate!A39 -> Pipette Method fractions <2, <16, <50, >50u (CBLB) (N.B: Preparation excl.) Only performed by lab personnel | F46: =Rate!B39 -> 89.68 | H46: 1
A47: =Rate!A40 -> Shrinkage Characteristic curve (h=0 until -10^6cm) 15 points | F47: =ROUND(($H$11/100)*Rate!B40,2) -> 431.89 | H47: 1
A48: =Rate!A41 -> Sieve curve weight fractions <63, <105, <150, <210, <420, <2000 (chemical preparation excl.) | F48: =ROUND(($H$11/100)*Rate!B41,2) -> 117.46 | H48: 1
A49: =Rate!A42 -> Unsaturated hydraulic conductivity curve + pF curve ( = 4xSandb + Evap Method&filter + 2xPress.Plt + Air dry) (excl fit) | F49: =ROUND(($H$11/100)*Rate!B42,2) -> 1111.87 | H49: 1 | I49: =IF(AND(G49>0,H49>0),F49*G49*H49,"") -> 
A50: =Rate!A43 -> (Un)saturated hydraulic conductivity curve + pF curve ( = Ksat + 4xSandb + Evap Method&filter + 2xPress.Plt + Air dry + MvG-fit) | F50: =ROUND(($H$11/100)*Rate!B43,2) -> 1841.72 | H50: 1
A51: =Rate!A44 -> Other:
A52: =Rate!A45 -> Other Lab experiments expressed per man hour of use | F52: =ROUND(($H$11/100)*Rate!B45,2) -> 129.27 | G52: Hours --> | I52: =IF(H52>0,F52*H52,"") -> 
A54: Administration costs | I54: =Rate!B4/2 -> 53
F55: Total | I55: =SUM(I19:I54) -> 53
A56: Remarks:
A57: Manager SHP-lab | C57: Manager Project | F57: F&C
A58: Name: | B58: G. Bakker | C58: Name: | F58: Name:
A59: Date: | C59: Date: | F59: Date:
A60: Signature: | C60: Signature: | F60: Signature:

Sheet Rate
A1: Price List
A2: Soil Hydro-Physics (SHP) Laboratory 2020
A3: Last update by Gerben Bakker on 03-02-2020
A4: Rate (M+IKP)/2=(120+92)/2= | B4: =(120+92)/2 -> 106
A5: Experiments performed by yourself:
A6: Not a member of WENR-SWL, DOW-SLM, DOW-SBL, DOW-SGL | B6: 25% of normal total costs
A7: Member of WENR-SWL, DOW-SLM, DOW-SBL, DOW-SGL | B7: 18% of normal total costs
A8: Non-contract funded projects and member of WENR-SWL, DOW-SLM, DOW-SBL, DOW-SGL | B8: 0% of normal total costs
A10: Method, Complete Curves, or Other | B10: Normal total costs (Euro) per sample per point or fraction Total (= Labor + Lab) T (= 0.82 * T + 0.18 * T)
A11: Individual Methods:
A12: Aggregate Stability per aggregate fraction | B12: 93.57335635
A13: Air dry mass water content (h=-10^6 cm) | B13: 24.18
A14: Atterberg Limits | B14: 644.9378985
A15: Burette Hanging Water Column Manual (h=0 until -200cm) | B15: 82.92137868
A16: Dry Bulk Density rho(d) (undisturbed samples) (T=105 dgr.C) | B16: 24.18091371
A17: Evaporation (Wind) (h=-50 until -700cm) (fixed > 20 points) + data filter (excl fit) | B17: 806.71
A18: Evaporation_Mualem-Van Genuchten Fit | B18: 387.8
A19: Loss on ignition (OS) (T=550 dgr.C) | B19: 18.50964467
A20: Multistep (h=0 until -1000cm) (fixed > 50 points) | B20: 125.5319797
A21: Pipette Preparation (CBLB): Dry, break, sieve <2000u, Remove OM (H2O2), Carbonates (HCl) (Only performed by Lab personnel) | B21: 104.7839594
A22: Pipette Method per fraction (CBLB) (N.B: Preparation excl.) Only performed by lab personnel | B22: 20.83411168
A23: Pore Volume (excl drying at 105 gr.C) with air pycnometer | B23: 49.52406091
A24: Pressure Plate (h=-10^3 until -10^4cm) | B24: 92.12852792
A25: Sandbox (h=0 until -100cm) | B25: 24.18
A26: Saturated Hydraulic Conductivity Ksat (h=0) | B26: 342.0517766
A27: Saturated Hydraulic Conductivity Ksat (h=0) at extreme low conductivities | B27: 494.0783756
A28: Shrinkage Characteristic (h=0 until -10^6cm) | B28: 28.78680203
A29: Sieving Preparation (CBLB): Dry, break, sieve <2000u, Remove OM (H2O2), Carbonates (HCl) (Only performed by Lab personnel) | B29: 104.7839594
A30: Sieving weight fraction (chemical preparation excl.) | B30: 19.57502538
A31: Suction Plate (h=50 until -700cm) | B31: 42.61522843
A32: Water Content or Wetness (Volumetric or Gravimetric Water Content) (T=105 dgr.C) | B32: 24.18091371
A33: Water Repellency: Water or Alcohol Penetration Test | B33: 24.18091371
A34: Wetting rate | B34: 115.168731
A35: Complete Curves:
A36: Compression c.q. Uniaxial test (compression and pressure head in time at predefined forces up to 7 bar) | B36: 211.9139086
A37: pF curve (h = 3, 10, 30, 60, 100, 300, 1000, 3000, 14000, 1000 000 cm) | B37: 513.6
A38: Pipette Preparation (CBLB): Dry, break, sieve <2000u, Remove OM (H2O2), Carbonates (HCl) (Only performed by Lab personnel) | B38: 104.7839594
A39: Pipette Method fractions <2, <16, <50, >50u (CBLB) (N.B: Preparation excl.) Only performed by lab personnel | B39: 89.68
A40: Shrinkage Characteristic curve (h=0 until -10^6cm) 15 points | B40: 431.8881218
A41: Sieve curve weight fractions <63, <105, <150, <210, <420, <2000 (chemical preparation excl.) | B41: 117.4609137
A42: Unsaturated hydraulic conductivity curve + pF curve ( = 4xSandb + Evap Method&filter + 2xPress.Plt + Air dry) (excl fit) | B42: =4*B25+B17+2*B24+B13 -> 1111.867056
A43: (Un)saturated hydraulic conductivity curve + pF curve ( = Ksat + 4xSandb + Evap Method&filter + 2xPress.Plt + Air dry + MvG-fit) | B43: =B26+4*B25+B17+2*B24+B18+B13 -> 1841.718832
A44: Other:
A45: Other Lab experiments expressed per man hour of use | B45: 129.2661929
A47: Please contact:
A48: Gerben Bakker 0317-486537 (gerben.bakker@wur.nl)
A49: Harm Gooren 0317-483707 (harm.gooren@wur.nl)
